[Event "Kvibergspelen September 2019"]
[Site "Prioritet Serneke Arena, Krutvagen 2, Gothenburg, Sweden"]
[Date "2019.09.29"]
[Round "7.4"]
[White "Ziegler, Ari"]
[Black "Blomqvist, Erik"]
[Result "0-1"]
[TimeControl "15 minutes + 5 seconds per move from move one (Round 1 - 4) / 90 minutes + 30 seconds per move from move one (Round 5 - 8)"]
[WhiteTitle "IM"]
[BlackTitle "GM"]
[WhiteFideId "1700987"]
[BlackFideId "1709437"]
[WhiteElo "2299"]
[BlackElo "2519"]

1. d4 {[%clk 01:30:15]} {[%emt 00:00:44]} Nf6 {[%clk 01:30:51]} {[%emt
00:00:09]} 2. c4 {[%clk 01:27:53]} {[%emt 00:02:52]} e6 {[%clk 01:31:11]}
{[%emt 00:00:10]} 3. Nf3 {[%clk 01:28:07]} {[%emt 00:00:16]} Bb4+ {[%clk
01:30:28]} {[%emt 00:01:13]} 4. Bd2 {[%clk 01:28:27]} {[%emt 00:00:09]} a5
{[%clk 01:30:42]} {[%emt 00:00:16]} 5. Nc3 {[%clk 01:26:16]} {[%emt 00:02:42]}
b6 {[%clk 01:30:14]} {[%emt 00:00:58]} 6. e3 {[%clk 01:26:07]} {[%emt
00:00:38]} Bb7 {[%clk 01:30:07]} {[%emt 00:00:38]} 7. Bd3 {[%clk 01:26:27]}
{[%emt 00:00:10]} d6 {[%clk 01:29:59]} {[%emt 00:00:38]} 8. Qc2 {[%clk
01:22:57]} {[%emt 00:04:00]} Nbd7 {[%clk 01:28:58]} {[%emt 00:01:31]} 9. a3
{[%clk 01:19:15]} {[%emt 00:04:12]} Bxc3 {[%clk 01:29:08]} {[%emt 00:00:20]} 10.
Bxc3 {[%clk 01:19:36]} {[%emt 00:00:08]} O-O {[%clk 01:21:19]} {[%emt
00:08:19]} 11. O-O-O {[%clk 01:15:16]} {[%emt 00:04:50]} Qe7 {[%clk 01:19:08]}
{[%emt 00:02:41]} 12. Ng5 {[%clk 00:55:24]} {[%emt 00:20:22]} h6 {[%clk
01:19:11]} {[%emt 00:00:27]} 13. Nh7 {[%clk 00:50:10]} {[%emt 00:05:43]} Nxh7
{[%clk 01:15:06]} {[%emt 00:04:35]} 14. Bxh7+ {[%clk 00:50:19]} {[%emt
00:00:20]} Kh8 {[%clk 01:15:32]} {[%emt 00:00:04]} 15. Be4 {[%clk 00:50:40]}
{[%emt 00:00:09]} Bxe4 {[%clk 01:10:52]} {[%emt 00:05:11]} 16. Qxe4 {[%clk
00:50:05]} {[%emt 00:01:05]} d5 {[%clk 01:11:02]} {[%emt 00:00:21]} 17. cxd5
{[%clk 00:46:34]} {[%emt 00:04:01]} Nf6 {[%clk 01:11:17]} {[%emt 00:00:15]} 18.
Qh4 {[%clk 00:45:19]} {[%emt 00:01:43]} exd5 {[%clk 01:08:42]} {[%emt
00:03:06]} 19. f3 {[%clk 00:29:46]} {[%emt 00:16:03]} Qxe3+ {[%clk 01:05:37]}
{[%emt 00:03:36]} 20. Bd2 {[%clk 00:29:48]} {[%emt 00:00:27]} Qe6 {[%clk
01:05:27]} {[%emt 00:00:40]} 21. g4 {[%clk 00:29:17]} {[%emt 00:01:00]} Nh7
{[%clk 01:03:38]} {[%emt 00:02:20]} 22. Rhe1 {[%clk 00:22:09]} {[%emt
00:07:38]} Qg6 {[%clk 01:03:02]} {[%emt 00:01:06]} 23. f4 {[%clk 00:19:17]}
{[%emt 00:03:22]} Nf6 {[%clk 00:56:58]} {[%emt 00:06:33]} 24. g5 {[%clk
00:15:44]} {[%emt 00:04:04]} Ne4 {[%clk 00:56:58]} {[%emt 00:00:29]} 25. f5
{[%clk 00:14:00]} {[%emt 00:02:14]} Qxf5 {[%clk 00:56:39]} {[%emt 00:00:49]} 26.
Rf1 {[%clk 00:11:56]} {[%emt 00:02:34]} Qe6 {[%clk 00:54:16]} {[%emt 00:02:52]}
27. gxh6 {[%clk 00:11:43]} {[%emt 00:00:45]} g6 {[%clk 00:54:38]} {[%emt
00:00:07]} 28. Rfe1 {[%clk 00:07:52]} {[%emt 00:04:20]} f6 {[%clk 00:52:31]}
{[%emt 00:02:37]} 29. Be3 {[%clk 00:07:35]} {[%emt 00:00:47]} b5 {[%clk
00:48:29]} {[%emt 00:04:32]} 30. Kb1 {[%clk 00:02:07]} {[%emt 00:05:59]} b4
{[%clk 00:48:20]} {[%emt 00:00:39]} 31. Rd3 {[%clk 00:02:21]} {[%emt 00:00:15]}
Qf5 {[%clk 00:42:30]} {[%emt 00:06:21]} 32. Red1 {[%clk 00:01:13]} {[%emt
00:01:38]} g5 {[%clk 00:41:55]} {[%emt 00:01:05]} 33. Qe1 {[%clk 00:01:02]}
{[%emt 00:00:41]} bxa3 {[%clk 00:40:46]} {[%emt 00:01:39]} 34. bxa3 {[%clk
00:01:30]} {[%emt 00:00:02]} Rfb8+ {[%clk 00:40:12]} {[%emt 00:01:03]} 35. Ka1
{[%clk 00:01:58]} {[%emt 00:00:03]} a4 {[%clk 00:39:19]} {[%emt 00:01:24]} 36.
Rb1 {[%clk 00:01:14]} {[%emt 00:01:14]} Kh7 {[%clk 00:36:17]} {[%emt 00:03:31]}
37. h4 {[%clk 00:01:38]} {[%emt 00:00:06]} Rxb1+ {[%clk 00:36:33]} {[%emt
00:00:14]} 38. Qxb1 {[%clk 00:02:04]} {[%emt 00:00:04]} Kxh6 {[%clk 00:33:46]}
{[%emt 00:03:17]} 39. Rd1 {[%clk 00:02:33]} {[%emt 00:00:02]} Kg6 {[%clk
00:31:12]} {[%emt 00:03:02]} 40. hxg5 {[%clk 00:02:44]} {[%emt 00:00:19]} fxg5
{[%clk 00:31:26]} {[%emt 00:00:16]} 41. Qc2 {[%clk 00:02:38]} {[%emt 00:00:37]}
Ra6 {[%clk 00:22:38]} {[%emt 00:09:18]} 42. Rg1 {[%clk 00:02:17]} {[%emt
00:00:51]} Rf6 {[%clk 00:15:52]} {[%emt 00:07:17]} 43. Qxa4 {[%clk 00:02:19]}
{[%emt 00:00:28]} Qe6 {[%clk 00:08:51]} {[%emt 00:07:28]} 44. Qc2 {[%clk
00:02:47]} {[%emt 00:00:04]} Qd6 {[%clk 00:07:40]} {[%emt 00:01:41]} 45. Ka2
{[%clk 00:03:03]} {[%emt 00:00:14]} Rf3 {[%clk 00:06:24]} {[%emt 00:01:46]} 46.
Rxg5+ {[%clk 00:02:09]} {[%emt 00:01:25]} Kf7 {[%clk 00:06:41]} {[%emt
00:00:13]} 47. Qg2 {[%clk 00:01:49]} {[%emt 00:00:49]} Rxe3 {[%clk 00:03:27]}
{[%emt 00:03:44]} 48. Rg7+ {[%clk 00:00:41]} {[%emt 00:01:37]} Ke8 {[%clk
00:03:50]} {[%emt 00:00:07]} 49. Rg8+ {[%clk 00:01:05]} {[%emt 00:00:06]} Kd7
{[%clk 00:04:10]} {[%emt 00:00:10]} 50. Qg4+ {[%clk 00:00:46]} {[%emt
00:00:49]} Kc6 {[%clk 00:03:59]} {[%emt 00:00:40]} 51. Rg6 {[%clk 00:01:11]}
{[%emt 00:00:05]} Nf6 {[%clk 00:04:23]} {[%emt 00:00:06]} 0-1

[Event "Kvibergspelen September 2019"]
[Site "Prioritet Serneke Arena, Krutvagen 2, Gothenburg, Sweden"]
[Date "2019.09.29"]
[Round "7.5"]
[White "Seo, Jung Min"]
[Black "Hansen, Lars"]
[Result "1-0"]
[TimeControl "15 minutes + 5 seconds per move from move one (Round 1 - 4) / 90 minutes + 30 seconds per move from move one (Round 5 - 8)"]
[WhiteTitle "FM"]
[WhiteFideId "1734687"]
[BlackFideId "1402528"]
[WhiteElo "2437"]
[BlackElo "2207"]

1. c4 {[%clk 01:30:59]} b6 {[%clk 01:27:47]} {[%emt 00:03:13]} 2. Nc3 {[%clk
01:31:12]} {[%emt 00:00:18]} Bb7 {[%clk 01:28:03]} {[%emt 00:00:13]} 3. Nf3
{[%clk 01:29:27]} {[%emt 00:02:15]} e6 {[%clk 01:28:08]} {[%emt 00:00:26]} 4.
d4 {[%clk 01:29:42]} {[%emt 00:00:14]} Bb4 {[%clk 01:28:23]} {[%emt 00:00:14]}
5. Qc2 {[%clk 01:29:38]} {[%emt 00:00:35]} Nf6 {[%clk 01:25:09]} {[%emt
00:03:44]} 6. a3 {[%clk 01:30:03]} {[%emt 00:00:05]} Bxc3+ {[%clk 01:25:01]}
{[%emt 00:00:38]} 7. Qxc3 {[%clk 01:30:21]} {[%emt 00:00:11]} Ne4 {[%clk
01:23:27]} {[%emt 00:02:04]} 8. Qc2 {[%clk 01:30:37]} {[%emt 00:00:14]} O-O
{[%clk 01:22:40]} {[%emt 00:01:17]} 9. g3 {[%clk 01:30:07]} {[%emt 00:01:00]}
f5 {[%clk 01:20:02]} {[%emt 00:03:08]} 10. Bg2 {[%clk 01:30:25]} {[%emt
00:00:12]} d6 {[%clk 01:16:59]} {[%emt 00:03:34]} 11. Ng5 {[%clk 01:27:48]}
{[%emt 00:03:06]} Qf6 {[%clk 01:14:17]} {[%emt 00:03:11]} 12. O-O {[%clk
01:23:10]} {[%emt 00:05:08]} Qg6 {[%clk 00:45:03]} {[%emt 00:29:44]} 13. Nh3
{[%clk 00:53:48]} {[%emt 00:29:51]} Nd7 {[%clk 00:20:51]} {[%emt 00:24:42]} 14.
Nf4 {[%clk 00:52:24]} {[%emt 00:01:54]} Qf6 {[%clk 00:19:01]} {[%emt 00:02:19]}
15. d5 {[%clk 00:51:29]} {[%emt 00:01:26]} Ndc5 {[%clk 00:18:03]} {[%emt
00:01:28]} 16. Rb1 {[%clk 00:46:31]} {[%emt 00:05:27]} e5 {[%clk 00:13:10]}
{[%emt 00:05:23]} 17. Nh3 {[%clk 00:46:02]} {[%emt 00:00:58]} Qg6 {[%clk
00:12:50]} {[%emt 00:00:51]} 18. b4 {[%clk 00:45:05]} {[%emt 00:01:27]} Nd7
{[%clk 00:13:15]} {[%emt 00:00:05]} 19. f3 {[%clk 00:45:15]} {[%emt 00:00:20]}
Nef6 {[%clk 00:13:34]} {[%emt 00:00:11]} 20. Ng5 {[%clk 00:45:03]} {[%emt
00:00:43]} Rac8 {[%clk 00:11:46]} {[%emt 00:02:19]} 21. Bh3 {[%clk 00:44:35]}
{[%emt 00:00:58]} Nh5 {[%clk 00:08:38]} {[%emt 00:03:37]} 22. e4 {[%clk
00:44:29]} {[%emt 00:00:36]} f4 {[%clk 00:03:42]} {[%emt 00:05:27]} 23. Bxd7
{[%clk 00:41:42]} {[%emt 00:03:17]} Qxg5 {[%clk 00:04:06]} {[%emt 00:00:05]} 24.
Bxc8 {[%clk 00:41:39]} {[%emt 00:00:33]} Bxc8 {[%clk 00:04:32]} {[%emt
00:00:04]} 25. Qg2 {[%clk 00:41:42]} {[%emt 00:00:26]} Ba6 {[%clk 00:03:52]}
{[%emt 00:01:08]} 26. b5 {[%clk 00:40:36]} {[%emt 00:01:39]} Bc8 {[%clk
00:04:08]} {[%emt 00:00:12]} 27. gxf4 {[%clk 00:40:56]} {[%emt 00:00:11]} Qxg2+
{[%clk 00:03:47]} {[%emt 00:00:50]} 28. Kxg2 {[%clk 00:41:24]} {[%emt
00:00:03]} Nxf4+ {[%clk 00:02:18]} {[%emt 00:01:59]} 29. Bxf4 {[%clk 00:41:46]}
{[%emt 00:00:08]} Rxf4 {[%clk 00:02:42]} {[%emt 00:00:06]} 30. a4 {[%clk
00:41:57]} {[%emt 00:00:20]} g5 {[%clk 00:01:39]} {[%emt 00:01:33]} 31. a5
{[%clk 00:42:04]} {[%emt 00:00:23]} g4 {[%clk 00:01:23]} {[%emt 00:00:47]} 32.
Rbe1 {[%clk 00:42:13]} {[%emt 00:00:20]} bxa5 {[%clk 00:01:12]} {[%emt
00:00:42]} 33. Re3 {[%clk 00:41:39]} {[%emt 00:01:04]} h5 {[%clk 00:00:40]}
{[%emt 00:01:02]} 34. fxg4 {[%clk 00:41:57]} {[%emt 00:00:12]} hxg4 {[%clk
00:00:49]} {[%emt 00:00:20]} 35. Ra1 {[%clk 00:42:06]} {[%emt 00:00:21]} a6
{[%clk 00:00:57]} {[%emt 00:00:23]} 36. Rxa5 {[%clk 00:41:44]} {[%emt
00:00:51]} axb5 {[%clk 00:01:22]} {[%emt 00:00:05]} 37. c5 {[%clk 00:41:12]}
{[%emt 00:01:02]} dxc5 {[%clk 00:01:18]} {[%emt 00:00:34]} 38. Rxb5 {[%clk
00:41:40]} {[%emt 00:00:02]} c4 {[%clk 00:01:39]} {[%emt 00:00:10]} 39. Rc5
{[%clk 00:42:07]} {[%emt 00:00:03]} 1-0

[Event "Kvibergspelen September 2019"]
[Site "Prioritet Serneke Arena, Krutvagen 2, Gothenburg, Sweden"]
[Date "2019.09.29"]
[Round "7.6"]
[White "Carlsson, Ludvig"]
[Black "Le, Quang Long"]
[Result "1-0"]
[TimeControl "15 minutes + 5 seconds per move from move one (Round 1 - 4) / 90 minutes + 30 seconds per move from move one (Round 5 - 8)"]
[WhiteTitle "CM"]
[BlackTitle "IM"]
[WhiteFideId "1727010"]
[BlackFideId "12401749"]
[WhiteElo "2066"]
[BlackElo "2415"]

1. d4 {[%clk 01:30:58]} {[%emt 00:00:02]} f5 {[%clk 01:21:19]} {[%emt
00:09:41]} 2. b3 {[%clk 01:31:17]} {[%emt 00:00:11]} Nf6 {[%clk 01:21:14]}
{[%emt 00:00:35]} 3. Bb2 {[%clk 01:31:30]} {[%emt 00:00:16]} g6 {[%clk
01:21:40]} {[%emt 00:00:05]} 4. e3 {[%clk 01:31:51]} {[%emt 00:00:09]} Bg7
{[%clk 01:22:06]} {[%emt 00:00:04]} 5. h4 {[%clk 01:32:14]} {[%emt 00:00:07]}
O-O {[%clk 01:16:17]} {[%emt 00:06:19]} 6. Be2 {[%clk 01:31:06]} {[%emt
00:01:37]} e6 {[%clk 01:09:13]} {[%emt 00:07:35]} 7. Nh3 {[%clk 01:29:29]}
{[%emt 00:02:06]} Ne4 {[%clk 01:02:31]} {[%emt 00:07:13]} 8. Nf4 {[%clk
01:28:56]} {[%emt 00:01:02]} Bf6 {[%clk 01:02:47]} {[%emt 00:00:15]} 9. g3
{[%clk 01:27:00]} {[%emt 00:02:25]} b6 {[%clk 01:02:29]} {[%emt 00:00:48]} 10.
Nd2 {[%clk 01:24:55]} {[%emt 00:02:35]} Nxd2 {[%clk 00:59:23]} {[%emt
00:03:36]} 11. Qxd2 {[%clk 01:25:14]} {[%emt 00:00:10]} Bb7 {[%clk 00:59:49]}
{[%emt 00:00:04]} 12. Rh2 {[%clk 01:25:07]} {[%emt 00:00:36]} a5 {[%clk
00:59:41]} {[%emt 00:00:40]} 13. O-O-O {[%clk 01:23:33]} {[%emt 00:02:04]} a4
{[%clk 00:59:55]} {[%emt 00:00:16]} 14. Rg1 {[%clk 01:19:58]} {[%emt 00:04:03]}
axb3 {[%clk 01:00:14]} {[%emt 00:00:12]} 15. axb3 {[%clk 01:20:21]} {[%emt
00:00:07]} Qe7 {[%clk 00:38:08]} {[%emt 00:22:36]} 16. g4 {[%clk 01:12:48]}
{[%emt 00:08:03]} Bxh4 {[%clk 00:33:04]} {[%emt 00:05:35]} 17. Bd3 {[%clk
01:11:32]} {[%emt 00:01:45]} Be4 {[%clk 00:25:03]} {[%emt 00:08:32]} 18. gxf5
{[%clk 01:07:12]} {[%emt 00:04:49]} exf5 {[%clk 00:17:50]} {[%emt 00:07:43]} 19.
Bc4+ {[%clk 01:01:58]} {[%emt 00:05:43]} Rf7 {[%clk 00:17:55]} {[%emt
00:00:25]} 20. Nd5 {[%clk 00:52:18]} {[%emt 00:10:10]} Qd6 {[%clk 00:17:39]}
{[%emt 00:00:46]} 21. Nf4 {[%clk 00:51:56]} {[%emt 00:00:52]} Qe7 {[%clk
00:13:20]} {[%emt 00:04:49]} 22. Qe2 {[%clk 00:46:33]} {[%emt 00:05:52]} b5
{[%clk 00:04:36]} {[%emt 00:09:14]} 23. Nxg6 {[%clk 00:44:39]} {[%emt
00:02:23]} hxg6 {[%clk 00:02:12]} {[%emt 00:02:55]} 24. Rxg6+ {[%clk 00:45:02]}
{[%emt 00:00:07]} Kf8 {[%clk 00:02:40]} {[%emt 00:00:02]} 25. Qh5 {[%clk
00:45:22]} {[%emt 00:00:09]} Bf6 {[%clk 00:02:58]} {[%emt 00:00:12]} 26. Qh8+
{[%clk 00:45:48]} {[%emt 00:00:05]} 1-0

[Event "Kvibergspelen September 2019"]
[Site "Prioritet Serneke Arena, Krutvagen 2, Gothenburg, Sweden"]
[Date "2019.09.29"]
[Round "7.7"]
[White "Akesson, Ralf"]
[Black "Wengholm, Anders"]
[Result "1-0"]
[TimeControl "15 minutes + 5 seconds per move from move one (Round 1 - 4) / 90 minutes + 30 seconds per move from move one (Round 5 - 8)"]
[WhiteTitle "GM"]
[WhiteFideId "1700120"]
[BlackFideId "1704818"]
[WhiteElo "2367"]
[BlackElo "2218"]

1. d4 {[%clk 01:26:25]} {[%emt 00:04:34]} Nf6 {[%clk 01:30:36]} {[%emt
00:00:24]} 2. c4 {[%clk 01:26:42]} {[%emt 00:00:12]} c5 {[%clk 01:30:33]}
{[%emt 00:00:34]} 3. d5 {[%clk 01:27:02]} {[%emt 00:00:10]} e6 {[%clk
01:30:58]} {[%emt 00:00:05]} 4. Nc3 {[%clk 01:27:14]} {[%emt 00:00:17]} exd5
{[%clk 01:31:22]} {[%emt 00:00:06]} 5. cxd5 {[%clk 01:27:32]} {[%emt 00:00:12]}
d6 {[%clk 01:31:46]} {[%emt 00:00:06]} 6. e4 {[%clk 01:25:54]} {[%emt
00:02:07]} g6 {[%clk 01:32:00]} {[%emt 00:00:17]} 7. f4 {[%clk 01:26:11]}
{[%emt 00:00:14]} Bg7 {[%clk 01:31:55]} {[%emt 00:00:35]} 8. Bb5+ {[%clk
01:26:10]} {[%emt 00:00:31]} Nfd7 {[%clk 01:31:56]} {[%emt 00:00:30]} 9. a4
{[%clk 01:23:48]} {[%emt 00:02:52]} Qh4+ {[%clk 01:29:14]} {[%emt 00:03:11]} 10.
g3 {[%clk 01:24:07]} {[%emt 00:00:11]} Qd8 {[%clk 01:29:39]} {[%emt 00:00:05]}
11. Nf3 {[%clk 01:20:17]} {[%emt 00:04:20]} O-O {[%clk 01:28:06]} {[%emt
00:02:04]} 12. h3 {[%clk 01:15:37]} {[%emt 00:05:09]} Na6 {[%clk 00:47:58]}
{[%emt 00:40:38]} 13. O-O {[%clk 01:07:30]} {[%emt 00:08:37]} Nc7 {[%clk
00:46:25]} {[%emt 00:02:03]} 14. Bd3 {[%clk 01:04:47]} {[%emt 00:03:12]} a6
{[%clk 00:25:50]} {[%emt 00:21:06]} 15. Kh2 {[%clk 00:57:19]} {[%emt 00:07:58]}
Rb8 {[%clk 00:25:53]} {[%emt 00:00:28]} 16. a5 {[%clk 00:56:03]} {[%emt
00:01:45]} b5 {[%clk 00:25:34]} {[%emt 00:00:49]} 17. axb6 {[%clk 00:55:43]}
{[%emt 00:00:49]} Rxb6 {[%clk 00:25:55]} {[%emt 00:00:09]} 18. Ra2 {[%clk
00:48:42]} {[%emt 00:07:31]} Nb5 {[%clk 00:25:42]} {[%emt 00:00:43]} 19. Bd2
{[%clk 00:46:13]} {[%emt 00:02:59]} Rb8 {[%clk 00:19:28]} {[%emt 00:06:45]} 20.
Qc2 {[%clk 00:42:54]} {[%emt 00:03:49]} Re8 {[%clk 00:17:00]} {[%emt 00:02:58]}
21. Nd1 {[%clk 00:39:14]} {[%emt 00:04:09]} Nf6 {[%clk 00:05:32]} {[%emt
00:11:59]} 22. Re1 {[%clk 00:34:56]} {[%emt 00:04:47]} Bd7 {[%clk 00:03:21]}
{[%emt 00:02:42]} 23. Nf2 {[%clk 00:33:48]} {[%emt 00:01:37]} Qb6 {[%clk
00:02:32]} {[%emt 00:01:19]} 24. Bc4 {[%clk 00:32:36]} {[%emt 00:01:42]} Qb7
{[%clk 00:02:12]} {[%emt 00:00:52]} 25. b3 {[%clk 00:30:05]} {[%emt 00:02:59]}
Nc7 {[%clk 00:02:08]} {[%emt 00:00:34]} 26. Bc3 {[%clk 00:28:06]} {[%emt
00:02:29]} Bb5 {[%clk 00:01:47]} {[%emt 00:00:52]} 27. Ra3 {[%clk 00:22:17]}
{[%emt 00:06:19]} Re7 {[%clk 00:01:20]} {[%emt 00:00:56]} 28. Qc1 {[%clk
00:18:06]} {[%emt 00:04:42]} Rbe8 {[%clk 00:01:09]} {[%emt 00:00:42]} 29. Qa1
{[%clk 00:16:55]} {[%emt 00:01:41]} Nxe4 {[%clk 00:01:00]} {[%emt 00:00:39]} 30.
Nxe4 {[%clk 00:15:58]} {[%emt 00:01:26]} Rxe4 {[%clk 00:01:28]} {[%emt
00:00:02]} 31. Rxe4 {[%clk 00:15:49]} {[%emt 00:00:39]} Rxe4 {[%clk 00:01:49]}
{[%emt 00:00:09]} 32. Bxg7 {[%clk 00:15:48]} {[%emt 00:00:30]} Nxd5 {[%clk
00:01:50]} {[%emt 00:00:31]} 33. Bh6 {[%clk 00:13:35]} {[%emt 00:02:43]} f6
{[%clk 00:00:31]} {[%emt 00:01:49]} 34. Qxf6 {[%clk 00:12:27]} {[%emt
00:01:37]} Re2+ {[%clk 00:00:49]} {[%emt 00:00:12]} 35. Kg1 {[%clk 00:12:37]}
{[%emt 00:00:20]} 1-0

[Event "Kvibergspelen September 2019"]
[Site "Prioritet Serneke Arena, Krutvagen 2, Gothenburg, Sweden"]
[Date "2019.09.29"]
[Round "7.8"]
[White "Jaksland, Tim"]
[Black "Schandorff, Lars"]
[Result "1/2-1/2"]
[TimeControl "15 minutes + 5 seconds per move from move one (Round 1 - 4) / 90 minutes + 30 seconds per move from move one (Round 5 - 8)"]
[WhiteTitle "FM"]
[BlackTitle "GM"]
[WhiteFideId "1401084"]
[BlackFideId "1400070"]
[WhiteElo "2214"]
[BlackElo "2496"]

1. Nf3 {[%clk 01:30:58]} {[%emt 00:00:01]} d5 {[%clk 01:29:21]} {[%emt
00:01:39]} 2. c4 {[%clk 01:31:21]} {[%emt 00:00:06]} e6 {[%clk 01:29:34]}
{[%emt 00:00:18]} 3. g3 {[%clk 01:31:37]} {[%emt 00:00:14]} Nf6 {[%clk
01:29:47]} {[%emt 00:00:16]} 4. Bg2 {[%clk 01:32:02]} {[%emt 00:00:06]} Be7
{[%clk 01:30:09]} {[%emt 00:00:08]} 5. O-O {[%clk 01:32:03]} {[%emt 00:00:29]}
O-O {[%clk 01:30:29]} {[%emt 00:00:09]} 6. d4 {[%clk 01:31:47]} {[%emt
00:00:46]} dxc4 {[%clk 01:28:18]} {[%emt 00:02:42]} 7. Qc2 {[%clk 01:31:45]}
{[%emt 00:00:32]} b6 {[%clk 01:27:42]} {[%emt 00:01:06]} 8. Qxc4 {[%clk
01:16:10]} {[%emt 00:16:06]} Bb7 {[%clk 01:28:02]} {[%emt 00:00:09]} 9. Nc3
{[%clk 01:15:25]} {[%emt 00:01:16]} c5 {[%clk 01:28:06]} {[%emt 00:00:25]} 10.
Rd1 {[%clk 01:06:52]} {[%emt 00:09:03]} Nbd7 {[%clk 01:27:25]} {[%emt
00:01:11]} 11. Ne5 {[%clk 00:56:13]} {[%emt 00:11:10]} Bxg2 {[%clk 01:16:11]}
{[%emt 00:11:43]} 12. Kxg2 {[%clk 00:56:38]} {[%emt 00:00:06]} Qc7 {[%clk
01:08:06]} {[%emt 00:08:35]} 13. Nxd7 {[%clk 00:51:19]} {[%emt 00:05:48]} Qxd7
{[%clk 01:07:36]} {[%emt 00:01:00]} 14. dxc5 {[%clk 00:41:09]} {[%emt
00:10:41]} Qc6+ {[%clk 01:07:44]} {[%emt 00:00:21]} 15. f3 {[%clk 00:39:51]}
{[%emt 00:01:48]} Qxc5 {[%clk 01:04:39]} {[%emt 00:03:35]} 16. Qxc5 {[%clk
00:37:31]} {[%emt 00:02:49]} Bxc5 {[%clk 01:05:03]} {[%emt 00:00:06]} 17. Bg5
{[%clk 00:36:14]} {[%emt 00:01:47]} Be7 {[%clk 00:43:26]} {[%emt 00:22:07]} 18.
Ne4 {[%clk 00:28:35]} {[%emt 00:08:10]} Rfd8 {[%clk 00:33:58]} {[%emt
00:09:57]} 19. Nxf6+ {[%clk 00:27:21]} {[%emt 00:01:44]} Bxf6 {[%clk 00:34:16]}
{[%emt 00:00:13]} 20. Bxf6 {[%clk 00:27:40]} {[%emt 00:00:12]} gxf6 {[%clk
00:34:40]} {[%emt 00:00:05]} 21. Rac1 {[%clk 00:25:52]} {[%emt 00:02:18]} Rxd1
{[%clk 00:31:34]} {[%emt 00:03:37]} 22. Rxd1 {[%clk 00:26:17]} {[%emt
00:00:05]} Rc8 {[%clk 00:32:00]} {[%emt 00:00:04]} 23. Rd2 {[%clk 00:25:30]}
{[%emt 00:01:17]} Kf8 {[%clk 00:32:00]} {[%emt 00:00:30]} 24. Kf2 {[%clk
00:25:25]} {[%emt 00:00:36]} Ke7 {[%clk 00:32:25]} {[%emt 00:00:06]} 25. e4
{[%clk 00:24:57]} {[%emt 00:00:57]} Rc5 {[%clk 00:29:29]} {[%emt 00:03:26]} 26.
Ke3 {[%clk 00:23:26]} {[%emt 00:02:02]} f5 {[%clk 00:28:15]} {[%emt 00:01:43]}
27. exf5 {[%clk 00:20:19]} {[%emt 00:03:37]} Re5+ {[%clk 00:28:04]} {[%emt
00:00:41]} 28. Kf4 {[%clk 00:19:22]} {[%emt 00:01:26]} Rxf5+ {[%clk 00:28:28]}
{[%emt 00:00:06]} 29. Ke4 {[%clk 00:19:50]} {[%emt 00:00:02]} Rc5 {[%clk
00:28:00]} {[%emt 00:00:58]} 30. f4 {[%clk 00:19:53]} {[%emt 00:00:27]} h5
{[%clk 00:19:08]} {[%emt 00:09:21]} 31. Kf3 {[%clk 00:16:03]} {[%emt 00:04:21]}
Rc1 {[%clk 00:18:40]} {[%emt 00:00:57]} 32. Re2 {[%clk 00:13:20]} {[%emt
00:03:13]} Kf6 {[%clk 00:15:32]} {[%emt 00:03:39]} 33. Rd2 {[%clk 00:12:10]}
{[%emt 00:01:40]} Ra1 {[%clk 00:12:53]} {[%emt 00:03:08]} 34. a3 {[%clk
00:11:39]} {[%emt 00:01:02]} Rb1 {[%clk 00:13:05]} {[%emt 00:00:17]} 35. Rc2
{[%clk 00:11:19]} {[%emt 00:00:50]} a5 {[%clk 00:10:45]} {[%emt 00:02:50]} 36.
Re2 {[%clk 00:10:49]} {[%emt 00:00:59]} Kg6 {[%clk 00:08:34]} {[%emt 00:02:41]}
37. Rc2 {[%clk 00:10:48]} {[%emt 00:00:31]} Kf5 {[%clk 00:08:50]} {[%emt
00:00:14]} 38. h3 {[%clk 00:08:00]} {[%emt 00:03:17]} Rf1+ {[%clk 00:09:13]}
{[%emt 00:00:07]} 39. Kg2 {[%clk 00:07:52]} {[%emt 00:00:38]} Rd1 {[%clk
00:09:28]} {[%emt 00:00:16]} 40. Re2 {[%clk 00:07:21]} {[%emt 00:01:01]} f6
{[%clk 00:09:08]} {[%emt 00:00:51]} 41. Kf3 {[%clk 00:07:20]} {[%emt 00:00:31]}
Rf1+ {[%clk 00:06:42]} {[%emt 00:02:55]} 42. Kg2 {[%clk 00:07:35]} {[%emt
00:00:15]} Rb1 {[%clk 00:05:42]} {[%emt 00:01:30]} 43. Kf3 {[%clk 00:07:51]}
{[%emt 00:00:14]} Rf1+ {[%clk 00:04:51]} {[%emt 00:01:20]} 44. Kg2 {[%clk
00:08:16]} {[%emt 00:00:05]} Rb1 {[%clk 00:04:51]} {[%emt 00:00:31]} 45. Kf3
{[%clk 00:08:41]} {[%emt 00:00:05]} Rf1+ {[%clk 00:04:36]} {[%emt 00:00:44]}
1/2-1/2